Cogmind - Beta 13 X1 @@@ ROGUE MODE // 2023.11.27 @ 22:28:56 Player: alice_fexa Result: Destroyed by G-73 Enforcer with Phase Gun Performance ------------- Evolutions (9) 4500 Regions Visited (27) 5400 Robots Destroyed (459) 2295 Value Destroyed (24182) 24182 Prototype IDs (86) 1720 Alien Tech Used (3) 600 Bonus (18307) 18307 TOTAL SCORE: 57004 Bonus ------- Triggered High Security 500 High Alert Combat Kills 6967 Follower Combat Kills 1170 Network Hubs Disabled 400 Aligned with FarCom 300 Met Data Miner 300 Met Warlord at Base 500 MAIN.C Attacked Warlord 500 Warlord Defense Kills 124 Met R17 at Cetus 500 Found Hidden Lab 3000 Met Warlord at Research 2000 Invited to Help at Command 2000 Scanned by Researcher 500 Pursued by Intercept 1000 Friendly Fire -1454 Cogmind --------- Core Integrity 0/1600 Matter 133/300 Energy 100/100 System Corruption 34% Temperature Cool (4) Movement Core (50) Location -1/Access Parts ------- > --- POWER (3) -------- (None) > --- PROPULSION (6) --- (None) > --- UTILITY (13) ----- (None) > --- WEAPON (4) ------- (None) > --- INVENTORY (5) ---- Improved Transmission Jammer Layered Light Armor Plating Layered Light Armor Plating Skeleton Box Peak State ------------ > --- POWER ------------ Multi-Quantum Reactor > --- PROPULSION ------- Flying Diametric-Biometal Exoskeleton > --- UTILITY ---------- Armored Scrap Engine High-capacity Storage Unit Structural Scanner Experimental Optical Array Experimental Targeting Computer Experimental Core Analyzer Experimental Armor Integrity Analyzer Advanced Kinecellerator Improved Weapon Cycler Centrium Light Armor Plating Experimental Shield Generator Deep Network Scanner > --- WEAPON ----------- Hypervelocity Railgun Light Antimatter Cannon Hpw. Kinetic Linear Construct/C Hpw. Accelerated Gauss Construct/G > --- INVENTORY -------- Experimental Heat Sink Experimental Energy Well High-capacity Matter Pod Precision Matter Filter Improved Transmission Jammer Layered Heavy Armor Plating Centrium Light Armor Plating Centrium Medium Armor Plating Centrium Medium Armor Plating Centrium Medium Armor Plating Centrium Medium Armor Plating Centrium Medium Armor Plating Skeleton Box Long-range Tractor Beam Mini Drone Bay Transdimensional Reconstructor Helical Railgun Advanced Micro-nuke Launcher [Rating: 217] Favorites ----------- Power Constructs Engine Ion Engine Power Core Light Nuclear Core Reactor Constructs Propulsion Constructs Treads Light Treads Leg Myomer Leg Wheel Compact Wheel Flight Unit Constructs Utility High-capacity Storage Unit Device Armored Scrap Engine Storage High-capacity Storage Unit Processor Enhanced Optical Array Hackware Advanced System Shield Protection Centrium Medium Armor Plating Weapon Constructs Energy Gun Advanced Beam Rifle Ballistic Gun Constructs Ballistic Cannon Constructs Launcher Advanced Micro-nuke Launcher Impact Weapon Heavy Mace Piercing Weapon Vortex Lance Build | -11 -10 -10 -10 -9 -8 -8 -8 -6 -6 -6 -6 -5 -5 -5 -5 -5 -4 -4 -4 -4 -4 -4 -3 -3 -3 -2 -1 ------- Run | Jun Mat Min Exi Min Mat Sto Rec Fac Low Low Dat Pro Fac Upp Upp War Pro Fac Ext Cet Arc Hub Res Arm Lab Res Acc Slots Evolved 18 | . . . . . 4 . . 4 . . . . 2 . . . . 2 . . . . 2 . . 2 2 Power 2 | . . . . . . . . . . . . . 1 . . . . . . . . . . . . 1 . Propulsion 4 | . . . . . 1 . . 1 . . . . 1 . . . . 1 . . . . . . . . . Utility 10 | . . . . . 2 . . 3 . . . . . . . . . 1 . . . . 1 . . 1 2 Weapon 2 | . . . . . 1 . . . . . . . . . . . . . . . . . 1 . . . . Parts Attached 372 | 7 4 5 2 . 26 19 4 35 8 1 1 3 17 10 5 14 6 21 28 19 . 2 12 30 9 33 51 Power 7 | 1 1 1 . . 2 1 . 1 . . . . . . . . . . . . . . . . . . . Engine 4 | 1 1 1 . . 1 . . . . . . . . . . . . . . . . . . . . . . Core 3 | . . . . . 1 1 . 1 . . . . . . . . . . . . . . . . . . . Reactor . | . . . . . . . . . . . . . . . . . . . . . . . . . . . . Propulsion 20 | 2 . 1 . . 7 4 1 4 . . . . . . . . . . 1 . . . . . . . . Treads 9 | 1 . . . . 4 4 . . . . . . . . . . . . . . . . . . . . . Leg 1 | . . . . . . . . . . . . . . . . . . . 1 . . . . . . . . Wheel 9 | 1 . 1 . . 2 . 1 4 . . . . . . . . . . . . . . . . . . . Hover . | . . . . . . . . . . . . . . . . . . . . . . . . . . . . Flight 1 | . . . . . 1 . . . . . . . . . . . . . . . . . . . . . . Utility 244 | 1 3 3 . . 8 5 2 21 3 1 . 3 15 2 1 12 2 19 26 13 . 2 12 19 7 27 37 Device 162 | . . 1 . . 6 2 2 12 1 . . 2 11 2 1 8 2 15 20 8 . 1 9 18 4 19 18 Storage 8 | 1 2 . . . . . . . . . . 1 1 . . 1 . . . . . . 1 . . . 1 Processor 13 | . 1 . . . 1 . . . 1 . . . . . . . . 2 . . . 1 2 1 . 4 . Hackware 4 | . . . . . . . . . . . . . 2 . . . . . . . . . . . . . 2 Protection 57 | . . 2 . . 1 3 . 9 1 1 . . 1 . . 3 . 2 6 5 . . . . 3 4 16 Artifact . | . . . . . . . . . . . . . . . . . . . . . . . . . . . . Weapon 101 | 3 . . 2 . 9 9 1 9 5 . 1 . 2 8 4 2 4 2 1 6 . . . 11 2 6 14 Energy Gun 30 | 1 . . . . 3 6 . 4 3 . 1 . 1 4 2 1 . 2 . . . . . . 1 . 1 Energy Cannon . | . . . . . . . . . . . . . . . . . . . . . . . . . . . . Ballistic Gun 32 | 2 . . 2 . 2 2 1 . . . . . 1 . . . 2 . 1 4 . . . 5 1 4 5 Ballistic Cannon 10 | . . . . . 2 . . 3 . . . . . . . . . . . . . . . 1 . . 4 Launcher 26 | . . . . . 1 . . 2 2 . . . . 4 2 . 2 . . 2 . . . 5 . 2 4 Special Weapon . | . . . . . . . . . . . . . . . . . . . . . . . . . . . . Impact Weapon 2 | . . . . . 1 1 . . . . . . . . . . . . . . . . . . . . . Slashing Weapon . | . . . . . . . . . . . . . . . . . . . . . . . . . . . . Piercing Weapon 1 | . . . . . . . . . . . . . . . . 1 . . . . . . . . . . . Special Melee Weapon . | . . . . . . . . . . . . . . . . . . . . . . . . . . . . Unidentified Prototypes 42 | . . 1 . . . 5 . 3 1 . . 1 . . . 4 . 2 2 2 . . . 7 2 8 4 Parts Lost 54 | . . 1 . . 5 . . 6 . . . . . 1 . . . 1 1 . . . 1 . 1 7 30 Power 6 | . . . . . 1 . . 1 . . . . . . . . . . 1 . . . . . . . 3 Propulsion 2 | . . . . . . . . . . . . . . 1 . . . . . . . . . . . . 1 Utility 29 | . . 1 . . 2 . . 4 . . . . . . . . . 1 . . . . 1 . . 1 19 Weapon 17 | . . . . . 2 . . 1 . . . . . . . . . . . . . . . . 1 6 7 Highest Loss Streak 16 | . . 1 . . 2 . . 5 . . . . . 1 . . . 1 1 . . . 1 . 1 1 16 To Critical Strikes 1 | . . . . . . . . . . . . . . . . . . . . . . . . . . . 1 Average Slot Usage (%) 68 | . 96 99 91 100 91 89 70 70 68 68 62 68 61 59 55 53 55 57 59 56 60 59 62 62 65 65 62 Engine 2 | . 14 14 14 14 7 . . 4 6 6 6 6 5 5 5 2 . . . . . . . . . . . Core 1 | . . . . . 1 9 9 1 . . . . . . . . . 1 3 4 . . . . . . . Reactor 1 | . . . . . . . . . . . . . . . . 2 5 3 1 . 5 5 4 4 4 4 2 Treads 3 | . 14 14 14 14 10 9 1 3 . . . . . . . . . 1 5 4 5 5 4 4 4 2 . Leg 1 | . . . . . . . . 1 . . . . . 5 5 5 5 3 . . . . . . . 1 2 Wheel 3 | . 14 14 14 14 9 9 15 5 6 6 6 6 5 3 . . . . . . . . . . . . . Device 14 | . . . . . 17 18 15 22 19 17 12 18 11 11 11 9 11 11 14 15 15 14 13 12 12 15 14 Storage 6 | . 14 14 14 14 9 9 9 6 6 6 6 6 5 5 5 5 5 5 5 5 5 5 4 4 4 4 3 Processor 7 | . 10 5 . . . . . . . 6 6 6 5 5 5 5 5 10 10 10 10 10 13 13 13 14 13 Protection 7 | . . 8 14 14 9 9 2 8 8 6 12 6 5 5 5 4 5 7 10 6 10 10 9 9 9 5 6 Energy Gun 3 | . . . . . 12 13 3 3 4 6 . 6 5 4 4 4 . 5 2 . . . . . . . . Ballistic Gun 5 | . 28 28 19 28 11 7 8 1 . . . . . . . . 4 . 2 4 5 5 8 6 4 5 5 Ballistic Cannon 5 | . . . . . 2 6 . 6 6 6 6 6 5 5 5 5 5 5 5 4 5 5 4 6 10 8 5 Naked Turns 15 | . . . . . . . . . . . . . . . . . . . . . . . . . . . 15 Heaviest Build 181 | 12 47 52 52 52 61 61 58 85 82 86 86 80 89 93 94 91 96 95 115 117 113 113 118 137 138 167 181 Greatest Support 308 | 10 10 10 10 10 28 28 31 94 88 88 88 88 116 116 116 135 135 161 211 251 251 251 251 251 237 308 221 Greatest Overweight (x) 7 | 1 4 5 5 5 5 2 3 7 . . . . 1 . . . . . . . . . . . . . 1 Average Overweight (x) 1 | . 2 4 4 5 2 1 1 3 . . . . . . . . . . . . . . . . . . . Largest Inventory Capacity 20 | 8 20 20 20 20 20 20 20 20 20 20 20 20 20 20 20 20 20 20 20 20 20 20 20 20 20 20 20 Average Capacity 19 | 7 17 20 20 20 20 20 20 20 20 20 20 20 20 20 20 20 20 20 20 20 20 20 20 20 20 20 19 Most Carried 20 | 4 20 20 20 20 20 20 20 20 20 20 20 20 20 20 20 20 20 20 20 20 20 20 20 20 20 20 19 Average Carried 19 | 2 11 19 20 20 19 19 18 19 19 19 20 20 19 20 20 20 20 19 19 19 20 20 19 19 19 19 16 Final Capacity 20 | 8 20 20 20 20 20 20 20 20 20 20 20 20 20 20 20 20 20 20 20 20 20 20 20 20 20 20 5 Final Carried 20 | 4 20 20 20 20 20 20 20 20 19 20 20 20 20 20 20 20 20 19 20 20 20 20 19 20 20 20 4 Scrap Engine Consumption 259 | . . . . . . . 24 41 3 . . 2 20 . 2 6 . 10 30 15 1 3 1 23 2 69 7 Constructs Created 9 | . . . . . . . 2 2 . . . . . . . . . . . . . . 1 . 1 3 . Constructs Modified 107 | . . . . . . . 5 20 . . . . 3 . . 7 . 8 11 10 . . . 6 1 30 6 Class Distribution -------------------- 62% | Construct 14% | Scavenger-Construct 10% | Mutant 5% | Scavenger-Skirmisher 3% | Skirmisher Dominant Class ---------------- Mutant | -10/Materials Mutant | -10/Mines Mutant | -10/Exiles Mutant | -9/Mines Skirmisher | -8/Materials Scavenger-Skirmisher | -8/Storage Construct | -8/Recycling Construct | -6/Factory Construct | -6/Lower Caves Construct | -6/Lower Caves Construct | -6/Data Miner Construct | -5/Proximity Caves Construct | -5/Factory Construct | -5/Upper Caves Construct | -5/Upper Caves Construct | -5/Warlord Construct | -4/Proximity Caves Construct | -4/Factory Construct | -4/Extension Construct | -4/Cetus Construct | -4/Archives Construct | -4/Hub_04(d) Construct | -3/Research Construct | -3/Armory Construct | -3/Lab Scavenger-Construct | -2/Research Scavenger-Construct | -1/Access Resources | -11 -10 -10 -10 -9 -8 -8 -8 -6 -6 -6 -6 -5 -5 -5 -5 -5 -4 -4 -4 -4 -4 -4 -3 -3 -3 -2 -1 ----------- Run | Jun Mat Min Exi Min Mat Sto Rec Fac Low Low Dat Pro Fac Upp Upp War Pro Fac Ext Cet Arc Hub Res Arm Lab Res Acc Matter Collected 19059 | 263 260 192 202 10 512 467 79 2392 186 147 . 135 418 320 187 282 236 1069 2758 1323 211 277 896 1071 110 2638 2418 Remotely 5078 | . . . . . . . . . . . . . . . . . . . 430 1016 . . 587 380 55 890 1720 Salvage Created 22476 | . 317 99 . . 757 856 425 2679 237 263 . 163 462 242 300 54 278 1550 2122 911 381 560 2085 925 . 3532 3278 Parts 963 | . 31 5 . . 35 47 22 119 12 2 . 10 17 14 14 4 16 70 74 38 18 40 110 35 . 113 117 Haulers Intercepted 16 | . 1 . . . 1 3 . 4 . . . . 2 . . . . 1 1 . . 2 . . . . 1 Recyclers Shooed 8 | . . . . . . . . 5 . . . . . . . . . 1 1 . . . . . . . 1 Parts Field Recycled . | . . . . . . . . . . . . . . . . . . . . . . . . . . . . Retrieved Matter . | . . . . . . . . . . . . . . . . . . . . . . . . . . . . Parts Self-Destructed 44 | . . . . . . . . . 9 . . 5 . 10 7 . 13 . . . . . . . . . . Prevented 3 | . . . . . . . . . 1 . . . . 2 . . . . . . . . . . . . . Kills | -11 -10 -10 -10 -9 -8 -8 -8 -6 -6 -6 -6 -5 -5 -5 -5 -5 -4 -4 -4 -4 -4 -4 -3 -3 -3 -2 -1 ------- Run | Jun Mat Min Exi Min Mat Sto Rec Fac Low Low Dat Pro Fac Upp Upp War Pro Fac Ext Cet Arc Hub Res Arm Lab Res Acc Combat Hostiles Destroyed 330 | . 11 2 . . 10 12 2 26 6 1 . 1 5 14 9 2 11 13 20 24 4 3 18 17 1 57 61 Melee 2 | . . . . . . . . . . . . . . . . 1 . . . . . . . . 1 . . Guns 111 | . 11 2 . . 8 11 2 2 1 . . . 2 1 . . 1 7 7 8 1 1 10 2 . 14 20 Cannons 127 | . . . . . 2 1 . 21 . 1 . 1 2 1 1 1 . 6 13 7 3 2 8 9 . 27 21 AOE 90 | . . . . . . . . 3 5 . . . 1 12 8 . 10 . . 9 . . . 6 . 16 20 Classes Destroyed 25 | . 4 . . . 3 2 . 3 . . . 1 . . 1 2 1 . 1 . . . 2 . . 4 1 Worker 26 | . . . . . . 2 . 9 . . . . . . . . . 2 . . . 4 4 . . . 5 Builder 18 | . . . . . . 3 2 3 . . . . . . . . . 1 1 . . 3 2 . . . 3 Tunneler 2 | . . . . . . . . . . . . . . . . . . . . . . . 1 . . . 1 Hauler 16 | . 1 . . . 1 3 . 4 . . . . 2 . . . . 1 1 . . 2 . . . . 1 Recycler 29 | . . . . . 2 2 3 7 . . . . . . . . . 4 4 . . . 4 . . 2 1 Minesweeper 2 | . . . . . . . . . . . . 1 . 1 . . . . . . . . . . . . . Mechanic 6 | . . . . . . . . . . . . . . . . . . . . . . . 2 . . . 4 Operator 2 | . . . . . . . . 1 . . . . . 1 . . . . . . . . . . . . . Watcher 24 | . 2 . . . . 1 . 4 . . . . 1 . . . . 4 1 2 . 1 3 2 . . 3 Swarmer 76 | . 9 . . . . 3 . 1 5 . . . 1 12 8 . 4 . . 14 . . . 6 . 6 7 Saboteur 2 | . . . . . . . . . . . . . . . . 1 . . . . . . . . . . 1 Grunt 83 | . 2 2 . . 5 3 . 10 . 1 . 1 . 2 . . 6 3 6 . . . 9 1 . 12 20 Brawler 8 | . . . . . . . . . . . . . . . . . 1 1 . . . . 1 . . 1 4 Duelist 6 | . . . . . . . . 1 . . . . . . . . . . . . . . . . . 2 3 Protector 4 | . . . . . . . . . . . . . . . . 1 . . . . . . 2 . . . 1 Sentry 37 | . . . . . 4 6 2 2 1 . . . . . . . . 1 5 . 4 1 1 5 . 1 4 Demolisher 1 | . . . . . . . . . . . . . . . . . . . . . . . . . . 1 . Hunter 23 | . . . . . 1 . . 4 . . . . . . . . . . 6 . . . . 2 . 8 2 Programmer 45 | . . . . . . . . 8 . . . . 4 . 1 . . 8 . 2 . 2 5 3 . 3 9 Behemoth 2 | . . . . . . . . . . . . . . . . . . . 2 . . . . . . . . Cetus Guard 8 | . . . . . . . . . . . . . . . . . . . . 8 . . . . . . . Enhanced Grunt 1 | . . . . . . . . . . . . 1 . . . . . . . . . . . . . . . Tracker 6 | . . . . . . . . . . . . . . . . . . . . . . . . . . 3 3 Combat Programmer 10 | . . . . . . . . . . . . . . . . . . . . . . . . . . 6 4 Investigator 1 | . . . . . . . . . . . . . . . . . . . . . . . . . . . 1 Striker 5 | . . . . . . . . . . . . . . . . . . . . . . . . . . 4 1 Executioner 12 | . . . . . . . . . . . . . . . . . . . . . . . . . . 10 2 Packrat 3 | . . . . . . . . . 2 . . . . 1 . . . . . . . . . . . . . Samaritan 1 | . . . . . . . . . . . . . . . 1 . . . . . . . . . . . . Surgeon 1 | . . . . . . . . . . . . . . . . . . . . . . . . . . 1 . Thug 1 | . . . . . . . . . . . . . . . . . . . 1 . . . . . . . . Mutant 1 | . . . . . . . . . . . . . . . . . . . . . . . . . . 1 . Best Kill Streak 15 | . 3 2 . . 3 3 1 6 3 1 . 2 2 4 8 1 7 2 4 14 2 8 9 5 1 8 15 Combat Bots Only 13 | . 3 2 . . 3 3 1 3 3 1 . 1 2 4 8 1 7 2 4 13 2 1 6 5 1 8 12 Max Kills in Single Turn 8 | . 1 1 . . 1 2 1 5 2 1 . 1 1 4 2 1 2 1 2 5 1 8 2 3 1 3 5 Gunslinging . | . . . . . . . . . . . . . . . . . . . . . . . . . . . . Exploded 5 | . . . . . . . . 3 2 . . . 1 4 2 . 2 . . 5 . . . 3 . 3 4 Melee 1 | . . . . . . . . . . . . . . . . 1 . . . . . . . . 1 . . Uniques/NPCs Destroyed 2 | . . . . . . . . . . . . . . . . . . . 1 . . . . . 1 . . A7 (-4/Extension) A5 (-3/Lab) Combat | -11 -10 -10 -10 -9 -8 -8 -8 -6 -6 -6 -6 -5 -5 -5 -5 -5 -4 -4 -4 -4 -4 -4 -3 -3 -3 -2 -1 -------- Run | Jun Mat Min Exi Min Mat Sto Rec Fac Low Low Dat Pro Fac Upp Upp War Pro Fac Ext Cet Arc Hub Res Arm Lab Res Acc Damage Taken 34609 | . 164 122 . . 592 326 92 2509 238 . . . 461 185 353 . 810 1395 2731 1434 295 246 1656 1154 1368 6489 11989 Core 3001 | . 31 26 . . 58 15 17 252 22 . . . 62 . 47 . 95 107 136 68 51 . 63 64 27 382 1478 Absorbed by Shields 6625 | . . . . . . . . . . . . . . . . . . . 56 . . . . 160 . 1841 4568 Reduced by Siege Mode 900 | . . . . . . . . . . . . . . . . . . . . 143 30 12 158 83 34 440 . Ignored by Resistances 89 | . . . . . . . . 22 . . . . . . . . . 49 18 . . . . . . . . Regen/Repaired (Parts) 10985 | . . . . . . . 33 775 . . 281 . 152 . 15 205 . 694 1724 648 84 40 287 454 293 2998 2302 Core Remaining (%) 79 | 100 . . . 77 . . 83 . . . . 67 . . . . 79 . . . . 68 . . 88 73 . Volleys Fired 1297 | . 36 8 . . 45 53 20 191 19 13 . 37 36 26 22 16 10 106 124 46 13 17 51 59 33 163 153 Largest 4 | . 2 2 . . 3 3 2 2 2 1 . 2 2 2 2 1 2 2 2 2 2 2 3 3 3 4 4 Hottest 191 | . 40 40 . . 135 166 159 191 139 78 . 139 139 139 139 78 111 166 166 78 78 78 138 138 136 164 173 Shots Fired 2590 | . 72 16 . . 112 140 26 308 22 13 . 40 61 30 25 16 12 166 236 85 22 27 123 111 66 416 445 Gun 1257 | . 72 16 . . 92 108 14 101 11 4 . 34 27 17 14 . 2 81 115 39 9 10 72 51 14 134 220 Cannon 1264 | . . . . . 19 32 12 207 5 9 . 6 34 5 4 16 3 85 121 44 13 17 51 56 52 271 202 Launcher 69 | . . . . . 1 . . . 6 . . . . 8 7 . 7 . . 2 . . . 4 . 11 23 Special . | . . . . . . . . . . . . . . . . . . . . . . . . . . . . Kinetic 2065 | . 72 16 . . 65 71 13 209 5 9 . 6 34 5 4 16 5 85 219 83 22 27 123 107 66 405 398 Thermal 442 | . . . . . 32 69 13 99 11 4 . 34 27 17 14 . . 81 17 . . . . . . . 24 Explosive 69 | . . . . . 1 . . . 6 . . . . 8 7 . 7 . . 2 . . . 4 . 11 23 Electromagnetic 14 | . . . . . 14 . . . . . . . . . . . . . . . . . . . . . . Robot Hit Streak 45 | . 11 14 . . 15 22 14 16 6 3 . 9 10 8 12 2 4 10 16 37 31 10 45 18 22 25 14 Robot Miss Streak 10 | . 5 2 . . 5 4 1 10 2 3 . 1 2 3 4 3 2 4 5 1 1 3 3 2 2 5 6 Penetration Max 2 | . . . . . . . . 1 . . . . . . . 1 . 2 1 1 . . 1 1 . 1 2 Secondary Targets 2 | . . . . . . . . . . . . . . . . . . . . . . . . . . . 2 Max Gunslinging Chain 1 | . . . . . . . . . . . . . . . . . . . . . . . . . . . 1 Shots Hit Robots 1608 | . 45 13 . . 74 88 19 191 12 4 . 30 39 15 17 8 6 87 146 75 19 17 87 84 48 243 241 Core Hits 915 | . 17 5 . . 28 35 11 88 14 4 . 12 8 23 17 4 33 41 64 37 9 13 59 36 13 149 195 Critical Kills 58 | . . . . . 1 . . . . . . . . . . . . 9 3 5 . 1 6 1 . 19 13 Critical Parts Destroyed 83 | . . . . . . . . . . . . . . . . 2 . 20 1 3 . 2 6 5 2 24 18 Critical Strikes 227 | . . . . . 5 4 . 12 . 1 . 5 1 . . 3 . 34 23 20 . 3 13 7 3 54 39 Burn 23 | . . . . . 3 2 . 7 . 1 . 5 1 . . . . 1 . . . . . . . . 3 Destroy 151 | . . . . . 1 . . . . . . . . . . 3 . 29 4 8 . 3 13 7 3 47 33 Blast 52 | . . . . . . 2 . 5 . . . . . . . . . 4 19 12 . . . . . 7 3 Corrupt 1 | . . . . . 1 . . . . . . . . . . . . . . . . . . . . . . Melee Attacks . | . . . . . . . . . . . . . . . . . . . . . . . . . . . . Impact . | . . . . . . . . . . . . . . . . . . . . . . . . . . . . Slashing . | . . . . . . . . . . . . . . . . . . . . . . . . . . . . Piercing . | . . . . . . . . . . . . . . . . . . . . . . . . . . . . Sneak Attacks . | . . . . . . . . . . . . . . . . . . . . . . . . . . . . Combat Hostiles . | . . . . . . . . . . . . . . . . . . . . . . . . . . . . Follow-up Attacks . | . . . . . . . . . . . . . . . . . . . . . . . . . . . . Damage Inflicted 70112 | . 567 180 . . 1182 1775 449 7272 699 113 . 509 1865 1501 1086 282 1364 3059 5016 4142 930 1678 4926 4075 1317 10383 15742 Guns 20502 | . 567 180 . . 998 1347 176 1622 160 60 . 404 410 220 275 . 21 1521 1920 960 173 212 2134 1241 165 1891 3845 Cannons 32026 | . . . . . 184 428 273 4259 54 53 . 105 1399 175 217 282 29 1538 3096 2093 757 591 2792 1957 1050 5505 5189 Explosions 17415 | . . . . . . . . 1391 485 . . . 56 1106 594 . 1314 . . 1089 . 875 . 877 . 2920 6708 Melee . | . . . . . . . . . . . . . . . . . . . . . . . . . . . . Ramming 169 | . . . . . . . . . . . . . . . . . . . . . . . . . 102 67 . Kinetic 45286 | . 567 180 . . 604 810 156 4250 54 53 . 105 1399 175 217 282 50 1538 4773 3053 930 803 4926 3198 1215 7396 8552 Thermal 8496 | . . . . . 385 965 293 3022 160 60 . 404 466 220 275 . . 1521 243 . . . . . . . 482 Explosive 15093 | . . . . . . . . . 485 . . . . 1106 594 . 1314 . . 1089 . . . 877 . 2920 6708 Electromagnetic 1068 | . . . . . 193 . . . . . . . . . . . . . . . . 875 . . . . . Impact . | . . . . . . . . . . . . . . . . . . . . . . . . . . . . Slashing . | . . . . . . . . . . . . . . . . . . . . . . . . . . . . Piercing . | . . . . . . . . . . . . . . . . . . . . . . . . . . . . Highest Corruption 34 | . 4 4 4 4 . . . 3 3 3 3 3 4 4 5 5 . 12 12 16 16 17 . 1 18 20 34 Average Corruption 6 | . 3 4 4 4 . . . 1 3 3 3 3 2 4 4 5 . 8 12 15 16 16 . 1 9 7 13 Corruption Purged . | . . . . . . . . . . . . . . . . . . . . . . . . . . . . Corruption Blocked 63 | . . . . . . . . . . . . . . . . 3 . . . . . . . . . 60 . Effects 455 | . 11 14 10 20 . . . 32 5 7 1 5 11 7 6 . . 41 86 25 9 22 . 3 13 65 62 Message Errors 94 | . 2 . 3 3 . . . 5 2 2 . . 3 1 . . . 9 24 7 3 4 . 1 2 16 7 Matter Fused 88 | . 4 4 3 5 . . . 4 1 4 . 2 2 2 2 . . 6 17 4 4 5 . . 1 10 8 Heat Flow Errors 54 | . . 4 . 2 . . . 3 . . 1 2 1 . 1 . . 5 9 3 2 3 . 1 3 9 5 Energy Discharges 62 | . 1 2 3 3 . . . 4 . . . . . 3 . . . 7 11 1 . 5 . . . 7 15 Parts Rejected 6 | . . . . . . . . . . . . . . . . . . 2 1 . . . . . . 1 2 Parts Fused 1 | . . . . . . . . . . . . . . . . . . . 1 . . . . . . . . Data Loss (minor) 67 | . 2 1 . 5 . . . 8 1 1 . . 3 1 3 . . 5 8 6 . 3 . . 4 7 9 Data Loss (major) 24 | . . . 1 . . . . 4 1 . . . 2 . . . . 3 3 2 . . . 1 1 2 4 Misfires 17 | . 1 1 . . . . . 3 . . . . . . . . . . 3 1 . 1 . . 1 2 4 Alerts 9 | . . 1 . 2 . . . 1 . . . 1 . . . . . 1 2 1 . . . . . . . Misdirections 2 | . . . . . . . . . . . . . . . . . . 1 . . . . . . . . 1 Weapon Failures 31 | . 1 1 . . . . . . . . . . . . . . . 2 7 . . 1 . . 1 11 7 Overload Shots . | . . . . . . . . . . . . . . . . . . . . . . . . . . . . Overflow Damage 2118 | . . . . . . . 20 354 67 . . . 174 68 53 . . 56 118 166 . 162 215 303 18 59 285 Projectiles 1498 | . . . . . . . 20 235 17 . . . 143 . 47 . . 56 118 100 . 96 198 231 18 44 175 Explosions 612 | . . . . . . . . 119 50 . . . 31 68 6 . . . . 66 . 66 17 72 . 7 110 Melee 8 | . . . . . . . . . . . . . . . . . . . . . . . . . . 8 . Knockbacks 194 | . . . . . 1 1 . 33 . . . . 13 1 2 . . 11 21 2 . 2 14 8 13 39 33 Impact 1 | . . . . . . . . . . . . . . . . . . . . . . . . . 1 . . Kinetic 178 | . . . . . 1 1 . 27 . . . . 12 1 2 . . 11 19 2 . 2 12 8 12 39 29 Secondary 15 | . . . . . . . . 6 . . . . 1 . . . . . 2 . . . 2 . . . 4 Self-Inflicted Damage 658 | . . . . . 32 . . . . . . . . 41 31 . . . . . . 94 68 . . . 392 Shots 11 | . . . . . 1 . . . . . . . . 2 1 . . . . . . 1 1 . . . 5 Rammed 9 | . . . . . . . . . . . . . . . . . . . . . . . . . 7 2 . Targets Rammed 10 | . . . . . . . . . . . . . . . . . . . . . . . . . 8 2 . Kicked . | . . . . . . . . . . . . . . . . . . . . . . . . . . . . Crushed 1 | . . . . . . . . . . . . . . . . . . . . . . . . . 1 . . Highest Temperature 373 | . . 255 . 175 160 6 200 174 39 . 185 126 264 83 194 114 38 236 318 225 251 247 373 150 223 283 356 Average Temperature 71 | . . 100 . 89 39 2 59 40 29 . 110 68 72 20 44 61 16 51 78 88 91 97 132 51 45 93 77 Received Heat Transfer 3508 | . 24 87 . . 207 126 27 468 24 . . . . 9 9 . 157 63 546 . 54 . 428 123 . 309 847 Effects 5 | . . . . . . . . . . . . . . . . . . . . . . 2 1 . . . 2 Interference 3 | . . . . . . . . . . . . . . . . . . . . . . 2 . . . . 1 Matter Decay 1 | . . . . . . . . . . . . . . . . . . . . . . . 1 . . . . Damage (minor) 1 | . . . . . . . . . . . . . . . . . . . . . . . . . . . 1 Siege Activations 34 | . . . . . . . . . . . . . . . . . . . . 4 5 3 7 8 1 6 . Total Turns 597 | . . . . . . . . . . . . . . . . . . . . 122 39 37 120 102 57 120 . Longest Duration 57 | . . . . . . . . . . . . . . . . . . . . 57 16 20 35 46 57 46 . Robots Corrupted . | . . . . . . . . . . . . . . . . . . . . . . . . . . . . Combat Hostiles . | . . . . . . . . . . . . . . . . . . . . . . . . . . . . Parts Fried 2 | . . . . . . . . . . . . . . 1 . . . . . . . 1 . . . . . Impact Corruptions 4 | . . . . . . . . 1 . . . . 1 . . . . . . . . . . . . 1 1 Robots Melted . | . . . . . . . . . . . . . . . . . . . . . . . . . . . . Combat Hostiles . | . . . . . . . . . . . . . . . . . . . . . . . . . . . . Parts Melted 19 | . . . . . 1 1 . 9 . . . . 1 . 1 . . 3 1 . . . . . . 2 . Heat Transferred 14711 | . . . . . 1147 2072 333 4230 296 185 . 1406 790 407 481 . . 2035 333 . . . . . . . 996 Parts Sabotaged 2 | . . . . . . . . . . . . . . . . . . . . . . . . . . . 2 Parts Stolen . | . . . . . . . . . . . . . . . . . . . . . . . . . . . . Parts Stripped . | . . . . . . . . . . . . . . . . . . . . . . . . . . . . Power Chain Reactions 1 | . . . . . 1 . . . . . . . . . . . . . . . . . . . . . . Missiles Intercepted . | . . . . . . . . . . . . . . . . . . . . . . . . . . . . Alert | -11 -10 -10 -10 -9 -8 -8 -8 -6 -6 -6 -6 -5 -5 -5 -5 -5 -4 -4 -4 -4 -4 -4 -3 -3 -3 -2 -1 ------- Run | Jun Mat Min Exi Min Mat Sto Rec Fac Low Low Dat Pro Fac Upp Upp War Pro Fac Ext Cet Arc Hub Res Arm Lab Res Acc Peak Influence 3174 | . 276 120 . . 234 392 97 797 . . . . 241 . . . . 384 529 785 386 917 770 687 . 1417 3174 Initial 849 | . . 80 . . . 70 70 10 . . . . 35 . . . . 31 187 146 234 135 375 403 . . 849 Average 406 | . 156 70 . . 72 197 40 427 . . . . 86 . . . . 190 286 467 341 306 546 452 . 492 1646 Maximum Alert Level 5 | . 1 . . . 1 1 . 3 . . . . 1 . . . . 1 2 3 1 3 3 2 . 4 5 Low Security (%) 41 | 100 63 100 . 100 95 58 100 22 . . . . 89 . . . . 51 29 10 . 22 . 2 . 37 . Level 1 18 | . 36 . . . 4 41 . 6 . . . . 10 . . . . 48 44 11 100 62 18 45 . 5 . Level 2 23 | . . . . . . . . 60 . . . . . . . . . . 25 67 . . 63 52 . 25 . Level 3 6 | . . . . . . . . 9 . . . . . . . . . . . 9 . 14 18 . . 11 22 Level 4 5 | . . . . . . . . . . . . . . . . . . . . . . . . . . 20 36 Level 5 1 | . . . . . . . . . . . . . . . . . . . . . . . . . . . 15 High Security 1 | . . . . . . . . . . . . . . . . . . . . . . . . . . . 24 Max Security . | . . . . . . . . . . . . . . . . . . . . . . . . . . . . Squads Dispatched 90 | . 1 . . . 1 . . 16 . . . . 4 . . . . 6 4 . . 2 8 2 . 16 30 Investigation 6 | . . . . . 1 . . 4 . . . . . . . . . . . . . . . . . . 1 Extermination 21 | . . . . . . . . 8 . . . . 2 . . . . 4 . . . 1 2 2 . . 2 Reinforcement 17 | . 1 . . . . . . 4 . . . . 2 . . . . 2 4 . . . . . . 1 3 Assault 21 | . . . . . . . . . . . . . . . . . . . . . . . 3 . . . 18 Garrison 4 | . . . . . . . . . . . . . . . . . . . . . . 1 3 . . . . Intercept 21 | . . . . . . . . . . . . . . . . . . . . . . . . . . 15 6 Searches Triggered . | . . . . . . . . . . . . . . . . . . . . . . . . . . . . Data Miner Redirects 3 | . . . . . . . . . . . . . . . . . . . . . . . 1 . . . 2 Construction Impeded 4 | . . . . . . . . . . . . . . . . . . 1 1 . . . . . . . 2 Haulers Reinforced 6 | . . . . . . . . 3 . . . . 1 . . . . . . . . . . . . 1 1 Active Scanning Responses . | . . . . . . . . . . . . . . . . . . . . . . . . . . . . Cargo Convoy Interrupts . | . . . . . . . . . . . . . . . . . . . . . . . . . . . . Stealth | -11 -10 -10 -10 -9 -8 -8 -8 -6 -6 -6 -6 -5 -5 -5 -5 -5 -4 -4 -4 -4 -4 -4 -3 -3 -3 -2 -1 --------- Run | Jun Mat Min Exi Min Mat Sto Rec Fac Low Low Dat Pro Fac Upp Upp War Pro Fac Ext Cet Arc Hub Res Arm Lab Res Acc Distress Signals 30 | . 1 . . . 2 1 . 5 . . . . . . . 1 . 1 3 1 . . . 1 . 12 2 Communications Jammed 1 | . . . . . . . . . . . . . . . . . . . . . . . . . . . 1 Distress Signals 1 | . . . . . . . . . . . . . . . . . . . . . . . . . . . 1 Times Spotted 580 | . 19 2 . . 19 22 2 42 7 2 . 2 14 13 14 27 11 24 43 25 4 5 29 27 1 96 130 Peak Tracking Total 29 | . 5 2 . . 4 4 1 8 3 2 . 2 5 4 5 9 7 3 8 10 1 2 7 6 1 9 29 Tactical Retreats 41 | . 1 . . . 2 2 . 2 . 2 . . 1 . 4 3 . 2 2 . . 1 2 1 . 10 6 Traps | -11 -10 -10 -10 -9 -8 -8 -8 -6 -6 -6 -6 -5 -5 -5 -5 -5 -4 -4 -4 -4 -4 -4 -3 -3 -3 -2 -1 ------- Run | Jun Mat Min Exi Min Mat Sto Rec Fac Low Low Dat Pro Fac Upp Upp War Pro Fac Ext Cet Arc Hub Res Arm Lab Res Acc Traps Triggered 10 | . 3 . . . . . . . . . . . . . . . . 1 . . . 2 . . . . 4 Indirectly 2 | . . . . . . . . . . . . . . . . . . . . . . 2 . . . . . Trap Hack Attempts . | . . . . . . . . . . . . . . . . . . . . . . . . . . . . Triggered . | . . . . . . . . . . . . . . . . . . . . . . . . . . . . Disarmed . | . . . . . . . . . . . . . . . . . . . . . . . . . . . . Reprogrammed . | . . . . . . . . . . . . . . . . . . . . . . . . . . . . Reused . | . . . . . . . . . . . . . . . . . . . . . . . . . . . . Traps Extracted . | . . . . . . . . . . . . . . . . . . . . . . . . . . . . Installed . | . . . . . . . . . . . . . . . . . . . . . . . . . . . . Triggered 16 | . . . . . 2 . . . 1 . . . . 2 . 11 . . . . . . . . . . . Machines | -11 -10 -10 -10 -9 -8 -8 -8 -6 -6 -6 -6 -5 -5 -5 -5 -5 -4 -4 -4 -4 -4 -4 -3 -3 -3 -2 -1 ---------- Run | Jun Mat Min Exi Min Mat Sto Rec Fac Low Low Dat Pro Fac Upp Upp War Pro Fac Ext Cet Arc Hub Res Arm Lab Res Acc Machines Disabled 66 | . . . . . 3 5 . 19 . . . . 4 . . . . 3 2 2 2 8 2 2 7 2 5 Max in Single Turn 8 | . . . . . 1 1 . 6 . . . . 2 . . . . 1 1 2 1 8 1 1 1 1 1 Garrison Access 2 | . . . . . . . . . . . . . . . . . . . . . . . . . . 2 . Network Hub 2 | . . . . . . . . . . . . . . . . . . . . . . 2 . . . . . Energy Cycler 1 | . . . . . . . . . . . . . . . . . . . . . . . . . . . 1 Machines Repaired . | . . . . . . . . . . . . . . . . . . . . . . . . . . . . Machines Sabotaged . | . . . . . . . . . . . . . . . . . . . . . . . . . . . . Overloaded Fab Kills . | . . . . . . . . . . . . . . . . . . . . . . . . . . . . Hacking | -11 -10 -10 -10 -9 -8 -8 -8 -6 -6 -6 -6 -5 -5 -5 -5 -5 -4 -4 -4 -4 -4 -4 -3 -3 -3 -2 -1 --------- Run | Jun Mat Min Exi Min Mat Sto Rec Fac Low Low Dat Pro Fac Upp Upp War Pro Fac Ext Cet Arc Hub Res Arm Lab Res Acc Machines Accessed 93 | . 4 . 3 . 6 6 12 17 . . 4 . 10 . . 3 . 7 4 . . 5 2 5 . 2 3 Terminals 58 | . 4 . . . 5 6 6 8 . . . . 7 . . . . 5 4 . . 4 2 4 . 1 2 Fabricators . | . . . . . . . . . . . . . . . . . . . . . . . . . . . . Repair Stations 2 | . . . . . . . . 1 . . . . . . . . . 1 . . . . . . . . . Recycling Units 15 | . . . . . 1 . 6 4 . . . . 1 . . . . 1 . . . . . 1 . . 1 Scanalyzers 1 | . . . . . . . . 1 . . . . . . . . . . . . . . . . . . . Garrison Access 7 | . . . . . . . . 3 . . . . 2 . . . . . . . . 1 . . . 1 . Total Hacks 270 | . 14 . 3 . 19 17 21 44 . . 30 . 28 . . 9 . 16 13 . . 7 6 25 . 9 9 Successful 127 | . 6 . 3 . 9 9 12 15 . . 30 . 6 . . 9 . 4 5 . . 4 1 10 . 2 2 Failed 143 | . 8 . . . 10 8 9 29 . . . . 22 . . . . 12 8 . . 3 5 15 . 7 7 Catastrophic 33 | . 1 . . . 1 1 1 5 . . . . 11 . . . . 3 1 . . 1 2 5 . . 1 Database Lockouts . | . . . . . . . . . . . . . . . . . . . . . . . . . . . . Manual 116 | . 11 . 1 . 10 13 8 11 . . . . 17 . . 1 . 6 8 . . 4 4 15 . 5 2 Terminals 177 | . 14 . . . 16 17 12 21 . . . . 24 . . . . 14 13 . . 6 6 23 . 5 6 Fabricators . | . . . . . . . . . . . . . . . . . . . . . . . . . . . . Repair Stations 4 | . . . . . . . . 3 . . . . . . . . . 1 . . . . . . . . . Recycling Units 25 | . . . . . 3 . 9 6 . . . . 1 . . . . 1 . . . . . 2 . . 3 Scanalyzers 5 | . . . . . . . . 5 . . . . . . . . . . . . . . . . . . . Garrison Access 17 | . . . . . . . . 9 . . . . 3 . . . . . . . . 1 . . . 4 . Terminal Hacks 93 | . 6 . 3 . 6 8 7 4 . . 30 . 4 . . 9 . 2 3 . . 3 1 6 . . 1 Record 22 | . . . 2 . . . . . . . 11 . . . . 8 . . . . . . . . . . 1 Part Schematic 10 | . . . . . . . . . . . 10 . . . . . . . . . . . . . . . . Robot Schematic 6 | . . . . . . . . . . . 6 . . . . . . . . . . . . . . . . Robot Analysis 6 | . 2 . . . . 2 2 . . . . . . . . . . . . . . . . . . . . Prototype ID Bank 6 | . . . . . . . 2 . . . 3 . . . . . . . . . . 1 . . . . . Open Door 2 | . . . . . . 1 . . . . . . . . . 1 . . . . . . . . . . . Branch Access Points 5 | . 1 . . . 1 . . 1 . . . . 1 . . . . 1 . . . . . . . . . Terminal Index 4 | . 1 . . . . . . 1 . . . . 1 . . . . 1 . . . . . . . . . Alert Level 5 | . . . . . . . 1 1 . . . . 1 . . . . . . . . 1 1 . . . . Unreport Threat 6 | . . . . . 1 1 . . . . . . 1 . . . . . 2 . . . . 1 . . . Locate Traps 9 | . 2 . . . 2 2 . . . . . . . . . . . . 1 . . . . 2 . . . Recall Investigation 1 | . . . . . 1 . . . . . . . . . . . . . . . . . . . . . . Hauler Manifests 1 | . . . . . . 1 . . . . . . . . . . . . . . . . . . . . . Registered Components 1 | . . . . . . . . . . . . . . . . . . . . . . . . 1 . . . Zone Layout 8 | . . . . . 1 1 2 1 . . . . . . . . . . . . . 1 . 2 . . . Derelict Proto ID Bank 1 | . . . 1 . . . . . . . . . . . . . . . . . . . . . . . . Fabricator Hacks . | . . . . . . . . . . . . . . . . . . . . . . . . . . . . Repair Station Hacks 2 | . . . . . . . . 2 . . . . . . . . . . . . . . . . . . . Scan Component 1 | . . . . . . . . 1 . . . . . . . . . . . . . . . . . . . Repair 1 | . . . . . . . . 1 . . . . . . . . . . . . . . . . . . . Recycling Unit Hacks 11 | . . . . . 1 . 4 3 . . . . . . . . . 1 . . . . . 1 . . 1 Retrieve Matter 1 | . . . . . . . . . . . . . . . . . . . . . . . . 1 . . . Retrieve Components 10 | . . . . . 1 . 4 3 . . . . . . . . . 1 . . . . . . . . 1 Scanalyzer 4 | . . . . . . . . 4 . . . . . . . . . . . . . . . . . . . Insert Component 2 | . . . . . . . . 2 . . . . . . . . . . . . . . . . . . . Analyze 2 | . . . . . . . . 2 . . . . . . . . . . . . . . . . . . . Garrison Access Hacks 1 | . . . . . . . . . . . . . . . . . . . . . . . . . . 1 . Seal Access 1 | . . . . . . . . . . . . . . . . . . . . . . . . . . 1 . Unauthorized Hacks 16 | . . . . . 2 1 1 2 . . . . 2 . . . . 1 2 . . 1 . 3 . 1 . Terminals 16 | . . . . . 2 1 1 2 . . . . 2 . . . . 1 2 . . 1 . 3 . 1 . Assimilate 1 | . . . . . . . . . . . . . 1 . . . . . . . . . . . . . . Botnet 14 | . . . . . 2 1 1 2 . . . . 1 . . . . 1 2 . . 1 . 2 . 1 . Operators 1 | . . . . . . . . . . . . . . . . . . . . . . . . 1 . . . Fabricators . | . . . . . . . . . . . . . . . . . . . . . . . . . . . . Repair Stations . | . . . . . . . . . . . . . . . . . . . . . . . . . . . . Recycling Units . | . . . . . . . . . . . . . . . . . . . . . . . . . . . . Scanalyzers . | . . . . . . . . . . . . . . . . . . . . . . . . . . . . Garrison Access . | . . . . . . . . . . . . . . . . . . . . . . . . . . . . Data Cores Recovered . | . . . . . . . . . . . . . . . . . . . . . . . . . . . . Used . | . . . . . . . . . . . . . . . . . . . . . . . . . . . . Hacking Detections 71 | . 3 . . . 5 5 8 13 . . . . 10 . . . . 7 4 . . 5 2 5 . 1 3 Full Trace Events 6 | . . . . . 1 . . 4 . . . . . . . . . . . . . . . . . . 1 Feedback Events 1 | . . . . . . . . . . . . . . . . . . . . . . . . . . . 1 Corruption 1 | . . . . . . . . . . . . . . . . . . . . . . . . . . . 1 Feedback Blocked . | . . . . . . . . . . . . . . . . . . . . . . . . . . . . Robot Schematics Acquired 6 | . . . . . . . . . . . 6 . . . . . . . . . . . . . . . . Robots Built . | . . . . . . . . . . . . . . . . . . . . . . . . . . . . Authchips . | . . . . . . . . . . . . . . . . . . . . . . . . . . . . Time . | . . . . . . . . . . . . . . . . . . . . . . . . . . . . Total Robot Build Rating . | . . . . . . . . . . . . . . . . . . . . . . . . . . . . Part Schematics Acquired 11 | . . . . . . . . 1 . . 10 . . . . . . . . . . . . . . . . Parts Built . | . . . . . . . . . . . . . . . . . . . . . . . . . . . . Authchips . | . . . . . . . . . . . . . . . . . . . . . . . . . . . . Time . | . . . . . . . . . . . . . . . . . . . . . . . . . . . . Total Part Build Rating . | . . . . . . . . . . . . . . . . . . . . . . . . . . . . Parts Repaired 1 | . . . . . . . . 1 . . . . . . . . . . . . . . . . . . . Time 44 | . . . . . . . . 44 . . . . . . . . . . . . . . . . . . . Parts Recycled . | . . . . . . . . . . . . . . . . . . . . . . . . . . . . Recycled Matter . | . . . . . . . . . . . . . . . . . . . . . . . . . . . . Retrieved Matter . | . . . . . . . . . . . . . . . . . . . . . . . . . . . . Retrieved Components 25 | . . . . . 3 . 3 18 . . . . . . . . . 1 . . . . . . . . . Parts Scanalyzed 1 | . . . . . . . . 1 . . . . . . . . . . . . . . . . . . . Part Schematics Acquired 1 | . . . . . . . . 1 . . . . . . . . . . . . . . . . . . . Parts Damaged . | . . . . . . . . . . . . . . . . . . . . . . . . . . . . Bothacking | -11 -10 -10 -10 -9 -8 -8 -8 -6 -6 -6 -6 -5 -5 -5 -5 -5 -4 -4 -4 -4 -4 -4 -3 -3 -3 -2 -1 ------------ Run | Jun Mat Min Exi Min Mat Sto Rec Fac Low Low Dat Pro Fac Upp Upp War Pro Fac Ext Cet Arc Hub Res Arm Lab Res Acc Used RIF Installer . | . . . . . . . . . . . . . . . . . . . . . . . . . . . . Robots Hacked . | . . . . . . . . . . . . . . . . . . . . . . . . . . . . Non-combat . | . . . . . . . . . . . . . . . . . . . . . . . . . . . . Combat . | . . . . . . . . . . . . . . . . . . . . . . . . . . . . Robot Hacks Applied . | . . . . . . . . . . . . . . . . . . . . . . . . . . . . Relay Couplers Released 1 | . . . . . . . . . . . . . . . . . . . . . . . . . . 1 . Machine Destruction 1 | . . . . . . . . . . . . . . . . . . . . . . . . . . 1 . Fabnet Peak Effective % . | . . . . . . . . . . . . . . . . . . . . . . . . . . . . Robots Rewired 20 | . . . . . . . . . . . . . . . . 5 . . 11 . . . . 4 . . . Allies Hacked 1 | . . . . . . . . . . . . . . . . . . . . . . . . 1 . . . Hacks Repelled . | . . . . . . . . . . . . . . . . . . . . . . . . . . . . Allies | -11 -10 -10 -10 -9 -8 -8 -8 -6 -6 -6 -6 -5 -5 -5 -5 -5 -4 -4 -4 -4 -4 -4 -3 -3 -3 -2 -1 -------- Run | Jun Mat Min Exi Min Mat Sto Rec Fac Low Low Dat Pro Fac Upp Upp War Pro Fac Ext Cet Arc Hub Res Arm Lab Res Acc Total Allies 27 | . . . . 1 . . . . . . . 1 1 . . 5 . . 15 . . . . 4 . . . Largest Group 7 | . . . . 1 1 . . . . . . 1 1 1 . 5 . . 7 . . . . 4 . . . Highest-Rated Group 432 | . . . . 31 31 . . . . . . 96 10 9 . 264 . . 432 . . . . 234 . . . Highest-Rated Ally 159 | . . . . 31 31 . . . . . . 96 10 9 . 68 . . 159 . . . . 89 . . . Total Orders 4 | . . . . . . . . 1 . . . . . 3 . . . . . . . . . . . . . STAY 2 | . . . . . . . . . . . . . . 2 . . . . . . . . . . . . . FOLLOW 1 | . . . . . . . . . . . . . . 1 . . . . . . . . . . . . . EXPLORE 1 | . . . . . . . . 1 . . . . . . . . . . . . . . . . . . . Ally Attacks 148 | . . . . . 3 . . . . . . 6 . . . 33 . . 79 . . . . 27 . . . Total Damage 5526 | . . . . . 40 . . . . . . 95 . . . 1280 . . 3184 . . . . 927 . . . Kills 29 | . . . . . 1 . . . . . . 1 . . . 9 . . 16 . . . . 2 . . . Allies Corrupted 1 | . . . . . . . . . . . . . . . . . . . . . . . . 1 . . . Allies Melted 2 | . . . . . . . . . . . . . . . . 1 . . . . . . . . . 1 . Intel | -11 -10 -10 -10 -9 -8 -8 -8 -6 -6 -6 -6 -5 -5 -5 -5 -5 -4 -4 -4 -4 -4 -4 -3 -3 -3 -2 -1 ------- Run | Jun Mat Min Exi Min Mat Sto Rec Fac Low Low Dat Pro Fac Upp Upp War Pro Fac Ext Cet Arc Hub Res Arm Lab Res Acc Robot Analysis Total 6 | . 2 . . . . 2 2 . . . . . . . . . . . . . . . . . . . . Derelict Logs Recovered 10 | . . 2 . 1 . . . . 2 2 . 1 . 1 . . 1 . . . . . . . . . . Drone Launches 3 | . . . . . . . . 2 . . . . . . . . . . . . . . . . . . 1 Drone Recoveries 1 | . . . . . . . . . . . . . . . . . . . . . . . . . . . 1 Exploration | -11 -10 -10 -10 -9 -8 -8 -8 -6 -6 -6 -6 -5 -5 -5 -5 -5 -4 -4 -4 -4 -4 -4 -3 -3 -3 -2 -1 ------------- Run | Jun Mat Min Exi Min Mat Sto Rec Fac Low Low Dat Pro Fac Upp Upp War Pro Fac Ext Cet Arc Hub Res Arm Lab Res Acc Turns Passed 28422 | 53 727 559 349 724 1446 1217 1171 4077 366 333 67 324 998 470 352 1057 417 1939 2028 549 180 443 1198 1266 363 3968 1781 Spaces Moved 16750 | 43 433 331 229 458 769 601 633 1980 404 380 88 307 1070 502 412 757 332 1339 714 185 62 209 608 574 152 2107 1071 Core 47 | 1 . . . . . . . . . . . . . . . . . . . . . . . . . . 46 Treads 4068 | . . . . . 1 . . 190 . . . . . . . . . 201 714 165 62 209 608 574 152 1192 . Legs 5228 | . . . . . . . . 3 . . . . 174 502 412 757 332 1138 . . . . . . . 915 995 Wheels 5119 | 42 433 331 229 458 768 601 633 1604 . . . . . . . . . . . 20 . . . . . . . Hover 22 | . . . . . . . . 22 . . . . . . . . . . . . . . . . . . . Flight 2266 | . . . . . . . . 161 404 380 88 307 896 . . . . . . . . . . . . . 30 Fastest Speed 50 | 50 95 140 140 155 115 115 115 72 72 72 72 72 67 67 67 67 115 98 172 120 148 148 148 122 122 89 50 Average Speed 122 | 84 124 148 150 155 132 129 143 160 72 72 72 72 72 67 67 87 115 107 172 166 148 148 148 142 122 144 84 Slowest Speed 320 | 95 140 155 155 155 320 130 160 207 72 72 72 72 152 67 67 115 115 172 172 172 148 148 148 148 122 285 132 Overloaded Moves . | . . . . . . . . . . . . . . . . . . . . . . . . . . . . Propulsion Burnouts . | . . . . . . . . . . . . . . . . . . . . . . . . . . . . Robots Hopped 6 | . . . . . . . . 1 . . . . 5 . . . . . . . . . . . . . . Cave-ins Triggered 1 | . . . . . . . . . . . . . . . . . . . . . . . . . . . 1 Teleports 1 | . . . . . . . . . . . . . . . . . . . . . . . . . . . 1 Exploration Rate (%) 57 | 4 95 50 61 87 45 74 93 53 57 58 74 46 34 57 59 94 66 28 77 73 73 23 16 43 96 53 34 Regions Visited 27 Branch Regions 19 Pre-discovered Areas 5 | . . 2 1 . . . . . . . 1 . . . . . 1 . . . . . . . . . . Known Exits Taken 8 | . 1 . 1 . 1 . . 1 . . . 1 1 . . . 1 1 . . . . . . . . . Unknown Exits Taken 19 | 1 . 1 . 1 . 1 1 . 1 1 1 . . 1 1 1 . . 1 1 1 1 1 1 1 1 . Scrap Searched 15 | . . 1 . 2 . . . . 2 4 . 2 . 1 2 . 1 . . . . . . . . . . Spaces Dug 265 | . . . . . 12 2 . 22 6 3 . 3 6 17 15 . 13 31 2 . . 8 41 38 . 6 40 Terrain Destroyed 1887 | . . . . . 14 4 3 105 39 8 . 4 62 124 77 13 90 121 57 67 6 366 73 118 1 85 450 Melee . | . . . . . . . . . . . . . . . . . . . . . . . . . . . . Projectile 688 | . . . . . 2 4 3 61 4 8 . 4 14 3 1 13 2 121 57 17 6 23 39 41 1 78 186 AOE 1199 | . . . . . 12 . . 44 35 . . . 48 121 76 . 88 . . 50 . 343 34 77 . 7 264 Terrain Rammed . | . . . . . . . . . . . . . . . . . . . . . . . . . . . . Walls Destroyed . | . . . . . . . . . . . . . . . . . . . . . . . . . . . . Machines Disabled . | . . . . . . . . . . . . . . . . . . . . . . . . . . . . Actions | -11 -10 -10 -10 -9 -8 -8 -8 -6 -6 -6 -6 -5 -5 -5 -5 -5 -4 -4 -4 -4 -4 -4 -3 -3 -3 -2 -1 --------- Run | Jun Mat Min Exi Min Mat Sto Rec Fac Low Low Dat Pro Fac Upp Upp War Pro Fac Ext Cet Arc Hub Res Arm Lab Res Acc Total 22598 | 56 552 382 236 472 1117 945 876 2599 454 425 91 369 1235 598 458 1138 348 1670 1342 366 135 324 833 940 282 2761 1594 Wait 3548 | 3 54 31 . 15 238 232 196 319 20 31 2 19 85 61 20 280 1 193 341 94 61 95 156 207 70 419 305 Move 16713 | 42 432 330 228 457 768 600 632 1977 403 379 87 306 1061 501 411 756 331 1338 713 184 61 208 607 573 151 2106 1071 Hop 4 | . . . . . . . . 1 . . . . 3 . . . . . . . . . . . . . . Pick Up 158 | 3 19 3 2 . 17 11 8 32 . 1 . 1 12 . . 2 . 4 5 9 . . 4 4 3 10 8 Fast Attach 149 | 7 2 2 2 . 9 10 2 11 3 . 1 2 7 . . 12 . 7 13 4 . 2 . 12 4 20 17 Attach 60 | . . 1 . . 10 . . 13 1 . . . . . . . . 3 . 3 . . 2 1 2 6 18 Detach 15 | 1 1 . . . . . 2 5 . . . . . . . . . . . 1 . . . 1 1 3 . Swap 166 | . 2 2 . . 7 9 2 11 5 1 . 1 10 10 5 2 6 11 15 12 . . 10 17 4 7 17 Drop 257 | . 6 5 4 . 23 30 14 39 3 . 1 3 21 . . 14 . 8 21 13 . 2 3 15 6 25 1 Fire 1297 | . 36 8 . . 45 53 20 191 19 13 . 37 36 26 22 16 10 106 124 46 13 17 51 59 33 163 153 Melee . | . . . . . . . . . . . . . . . . . . . . . . . . . . . . Ram . | . . . . . . . . . . . . . . . . . . . . . . . . . . . . Kick . | . . . . . . . . . . . . . . . . . . . . . . . . . . . . Crush 10 | . . . . . . . . . . . . . . . . . . . . . . . . . 8 2 . Escape Stasis 4 | . . . . . . . . . . . . . . . . . . . . . . . . . . . 4 Rewire 217 | . . . . . . . . . . . . . . . . 56 . . 110 . . . . 51 . . . Trap . | . . . . . . . . . . . . . . . . . . . . . . . . . . . . Miscellaneous . | . . . . . . . . . . . . . . . . . . . . . . . . . . . . Route ------- -11/Junkyard -10/Materials (discovered 4 exits: [*Mat x3] / *Min) -10/Mines (discovered 3 exits: [*Mat x2] / *Exi) -10/Exiles (discovered 2 exits: *Min x2) -9/Mines -8/Materials (discovered 3 exits: [*Fac] / *Sto x2) -8/Storage (discovered 2 exits: [*Fac] / *Rec) -8/Recycling -6/Factory (discovered 3 exits: *Fac / *Low x2) -6/Lower Caves -6/Lower Caves (discovered 2 exits: Fac / *Dat) -6/Data Miner -5/Proximity Caves -5/Factory (discovered 5 exits: *Fac x3 / *Upp x2) -5/Upper Caves -5/Upper Caves -5/Warlord -4/Proximity Caves -4/Factory (discovered 6 exits: *Res x2 / *Upp x2 / *Ext x2) -4/Extension (discovered 2 exits: *Res / *Cet) -4/Cetus (discovered 2 exits: *Res / [*Arc]) -4/Archives (discovered 3 exits: *Res / *Hub x2) -4/Hub_04(d) (discovered 2 exits: *Res x2) -3/Research -3/Armory -3/Lab -2/Research (discovered 3 exits: *Acc / *Tes x2) -1/Access (discovered 1 exit: Com) History --------- Turn | Location | Event 15 | -11/Junkyard | Discovered new exit (range 15) 54 | -11/Junkyard | Entered Materials 307 | -10/Materials | Build established: Mutant 394 | -10/Materials | Identified exit to Mines 417 | -10/Materials | Discovered new exit (range 3) 571 | -10/Materials | Discovered new exit (range 16) 652 | -10/Materials | Discovered new exit (range 17) 781 | -10/Materials | Entered Mines 894 | -10/Mines | Discovered new exit (range 12) 901 | -10/Mines | Learned location of Storage (-8) 1085 | -10/Mines | Found a damaged Exp. Sensor Array with a note attached 1090 | -10/Mines | Found Prototype Device 1090 | -10/Mines | Identified Exp. Sensor Array 1122 | -10/Mines | Received a Rocket Launcher from a helpful Derelict 1160 | -10/Mines | Discovered new exit (range 14) 1175 | -10/Mines | Learned location of Zion (-7) 1332 | -10/Mines | Deemed a non-threat by the Exiles lab entrance 1334 | -10/Mines | Discovered new exit (range 5) 1340 | -10/Mines | Entered Exiles 1341 | -10/Exiles | Identified exit to Mines 1379 | -10/Exiles | Met 8R-AWN 1406 | -10/Exiles | Met EX-HEX 1446 | -10/Exiles | Met EX-BIN 1469 | -10/Exiles | Aligned with FarCom system 1470 | -10/Exiles | Given EX-Vault access code 1504 | -10/Exiles | Opened EX-Vault 1514 | -10/Exiles | Found Skeleton Box 1548 | -10/Exiles | Warned to stay clear of 0b10 Research branches 1593 | -10/Exiles | Met EX-DEC 1689 | -10/Exiles | Left Exiles lab with Skeleton Box 1689 | -10/Exiles | Entered Mines 1711 | -9/Mines | Met a Derelict bent on vengeance 2164 | -9/Mines | Learned Materials interactive machine intel 2240 | -9/Mines | Received a Mining Laser from a helpful Derelict 2399 | -9/Mines | Discovered new exit (range 9) 2413 | -9/Mines | Entered Materials 2413 | -8/Materials | Accompanied by 1 ally 2413 | -8/Materials | Evolved 4 slots: Propulsion x1, Utility x2, Weapon x1 2414 | -8/Materials | Loaded intel: 19 interactive machine locations 2441 | -8/Materials | Discovered new exit (range 16) 2533 | -8/Materials | Discovered new exit (range 14) 2918 | -8/Materials | Discovered new exit (range 4) 2980 | -8/Materials | Build established: Skirmisher 3386 | -8/Materials | Identified exit to Storage 3859 | -8/Materials | Entered Storage 4338 | -8/Storage | Build established: Scavenger-Skirmisher 4496 | -8/Storage | Discovered new exit (range 8) 5058 | -8/Storage | Used back door to open Recycling access 5058 | -8/Storage | Discovered new exit (range 5) 5076 | -8/Storage | Entered Recycling 5077 | -8/Recycling | Found Scrap Engine 5666 | -8/Recycling | Build established: Construct 5946 | -8/Recycling | Discovered new exit (range 16) 6247 | -8/Recycling | Entered Factory 6247 | -6/Factory | Evolved 4 slots: Propulsion x1, Utility x3 7201 | -6/Factory | Lost 5 parts (1p3u1w) 7882 | -6/Factory | Found Prototype Launcher 8116 | -6/Factory | Discovered new exit (range 4) 8751 | -6/Factory | Identified Scatter Rocket Array 9549 | -6/Factory | Found Prototype Launcher 10137 | -6/Factory | Identified exit to Lower Caves 10273 | -6/Factory | Repaired Imp. Cooling System 10322 | -6/Factory | Identified Rocket Array 10324 | -6/Factory | Entered Lower Caves 10472 | -6/Lower Caves | Learned location of 1 exit from Factory 10542 | -6/Lower Caves | Attracted the attention of an 0b10 checkpoint 10605 | -6/Lower Caves | Attacked by a delusional Derelict stockpiling parts 10629 | -6/Lower Caves | Learned 4 Factory zone layouts 10661 | -6/Lower Caves | Found Alien Artifact 10661 | -6/Lower Caves | Identified Core Expander 10661 | -6/Lower Caves | Installed Core Expander, added new Utility slot 10685 | -6/Lower Caves | Discovered new exit (range 7) 10690 | -6/Lower Caves | Entered another Lower Caves area 10761 | -6/Lower Caves | Identified exit to Factory 10765 | -6/Lower Caves | Encountered a Warlord checkpoint 10775 | -6/Lower Caves | Learned Factory stockpile data 10982 | -6/Lower Caves | Attracted the attention of an 0b10 checkpoint 11017 | -6/Lower Caves | Discovered new exit (range 3) 11023 | -6/Lower Caves | Entered Data Miner 11024 | -6/Data Miner | Discovered new exit (range 6) 11033 | -6/Data Miner | Met Data Miner 11050 | -6/Data Miner | Learned location of Section 7 (-2) 11050 | -6/Data Miner | Acquired the access code to Warlord's prototype stash 11061 | -6/Data Miner | Received God Mode back door access code from Data Miner 11090 | -6/Data Miner | Entered Proximity Caves 11139 | -5/Proximity Caves | Learned Factory non-interactive machine intel 11169 | -5/Proximity Caves | Escorted by Enhanced Grunt 11295 | -5/Proximity Caves | Discovered exit to Factory (range 10) 11414 | -5/Proximity Caves | Entered Factory 11414 | -5/Factory | Evolved 2 slots: Power x1, Propulsion x1 11415 | -5/Factory | Identified exit to Factory 11416 | -5/Factory | Identified exit to Upper Caves 11418 | -5/Factory | Loaded intel: 181 non-interactive machine locations 11678 | -5/Factory | Discovered exit to Factory (range 20) 12035 | -5/Factory | Discovered exit to Factory (range 18) 12412 | -5/Factory | Entered Upper Caves 12412 | -5/Upper Caves | Accompanied by 1 ally 12507 | -5/Upper Caves | Learned 4 Factory zone layouts 12878 | -5/Upper Caves | Discovered new exit (range 4) 12882 | -5/Upper Caves | Entered another Upper Caves area 12963 | -5/Upper Caves | Encountered a Warlord checkpoint 13174 | -5/Upper Caves | Destroyed 8 combat bots 13230 | -5/Upper Caves | Discovered new exit (range 6) 13234 | -5/Upper Caves | Entered Warlord 13256 | -5/Warlord | System corruption cleaned by Quarantine Array 13349 | -5/Warlord | Learned 4 Research zone layouts 13349 | -5/Warlord | Learned 4 Testing zone layouts 13350 | -5/Warlord | Learned Factory garrison access intel 13350 | -5/Warlord | Learned Armory terminal intel 13350 | -5/Warlord | Learned Armory repair station intel 13350 | -5/Warlord | Learned Armory recycling unit intel 13392 | -5/Warlord | Visited the Vortex Lab 13397 | -5/Warlord | Found Prototype Piercing Weapon 13397 | -5/Warlord | Identified Vortex Lance 13405 | -5/Warlord | Warlord's base attacked by MAIN.C 13569 | -5/Warlord | Met Warlord 13581 | -5/Warlord | Opened Warlord's prototype stash 13597 | -5/Warlord | Found Prototype Processor 13755 | -5/Warlord | Warlord forces counterattacked 13808 | -5/Warlord | Build established: Commander-Construct 13881 | -5/Warlord | Spotted Striker 13881 | -5/Warlord | Spotted B-86 Titan 13905 | -5/Warlord | Allies destroyed B-86 Titan 13913 | -5/Warlord | Allies destroyed Striker 13937 | -5/Warlord | Spotted Executioner 13968 | -5/Warlord | Spotted Executioner 14080 | -5/Warlord | Warlord base infiltrated, sounded retreat 14195 | -5/Warlord | Spotted Striker 14214 | -5/Warlord | Spotted Striker 14230 | -5/Warlord | Build established: Construct 14236 | -5/Warlord | Discovered new exit (range 14) 14291 | -5/Warlord | Entered Proximity Caves 14644 | -4/Proximity Caves | Destroyed 7 combat bots 14684 | -4/Proximity Caves | Spotted B-86 Titan 14695 | -4/Proximity Caves | Discovered exit to Factory (range 6) 14708 | -4/Proximity Caves | Entered Factory 14708 | -4/Factory | Evolved 2 slots: Propulsion x1, Utility x1 14708 | -4/Factory | Identified Exp. Armor Integrity Analyzer 14710 | -4/Factory | Loaded intel: 4 garrison access locations 14761 | -4/Factory | Found Prototype Processor 14761 | -4/Factory | Identified Exp. Terrain Scan Processor 14796 | -4/Factory | Discovered new exit (range 17) 14802 | -4/Factory | Discovered new exit (range 21) 15025 | -4/Factory | Spotted B-86 Titan 15271 | -4/Factory | Discovered new exit (range 11) 15898 | -4/Factory | Discovered new exit (range 7) 16056 | -4/Factory | Identified exit to Upper Caves 16056 | -4/Factory | Identified exit to Extension 16250 | -4/Factory | System corruption reached 10% 16628 | -4/Factory | Remotely autohacked Sealed Blast Doors 16647 | -4/Factory | Entered Extension 16805 | -4/Extension | Rescued A7 17050 | -4/Extension | Rescued a captive Derelict 17051 | -4/Extension | Rescued a captive Derelict 17183 | -4/Extension | Found Prototype Protection 17183 | -4/Extension | Identified Med. Regenerative Plating 17387 | -4/Extension | Spotted B-86 Titan 17532 | -4/Extension | Destroyed B-86 Titan 17534 | -4/Extension | Spotted B-86 Titan 17556 | -4/Extension | Destroyed B-86 Titan 17897 | -4/Extension | Disrupted transfer network 18198 | -4/Extension | Rescued a captive Derelict 18565 | -4/Extension | Discovered new exit (range 10) 18567 | -4/Extension | Discovered new exit (range 6) 18675 | -4/Extension | Entered Cetus 18695 | -4/Cetus | Spotted Cetus Guard 18712 | -4/Cetus | Spotted Cetus Guard 18713 | -4/Cetus | Spotted Cetus Guard 18713 | -4/Cetus | Spotted Cetus Guard 18732 | -4/Cetus | Destroyed Cetus Guard 18735 | -4/Cetus | Destroyed Cetus Guard 18740 | -4/Cetus | Destroyed Cetus Guard 18757 | -4/Cetus | Destroyed Cetus Guard 18791 | -4/Cetus | Cetus Manufacturing Module disabled 18827 | -4/Cetus | Destroyed 7 combat bots 18923 | -4/Cetus | Remotely autohacked Sealed Heavy Doors 18936 | -4/Cetus | Discovered new exit (range 22) 18979 | -4/Cetus | Spotted Cetus Guard 18979 | -4/Cetus | Spotted Cetus Guard 18981 | -4/Cetus | Spotted Cetus Guard 18982 | -4/Cetus | Spotted Cetus Guard 18987 | -4/Cetus | Destroyed Cetus Guard 18987 | -4/Cetus | Destroyed Cetus Guard 19000 | -4/Cetus | Destroyed Cetus Guard 19030 | -4/Cetus | Destroyed Cetus Guard 19051 | -4/Cetus | Destroyed 13 combat bots 19072 | -4/Cetus | Discovered new exit (range 22) 19094 | -4/Cetus | Met Revision 17 19224 | -4/Cetus | Entered Archives 19305 | -4/Archives | Discovered new exit (range 22) 19355 | -4/Archives | Discovered new exit (range 13) 19380 | -4/Archives | Discovered new exit (range 16) 19404 | -4/Archives | Entered Hub_04(d) 19437 | -4/Hub_04(d) | Discovered new exit (range 21) 19509 | -4/Hub_04(d) | Garrison activated, responded to threat 19586 | -4/Hub_04(d) | Discovered new exit (range 17) 19782 | -4/Hub_04(d) | Network Hub disabled 19782 | -4/Hub_04(d) | Network Hub disabled 19847 | -4/Hub_04(d) | Entered Research 19847 | -3/Research | Evolved 2 slots: Utility x1, Weapon x1 20097 | -3/Research | First assault squad dispatched 20245 | -3/Research | Discovered new exit (range 15) 20268 | -3/Research | Garrison activated, responded to threat 20425 | -3/Research | Found Prototype Launcher 20813 | -3/Research | Incoming assault squad redirected 21045 | -3/Research | Entered Armory 21046 | -3/Armory | Loaded intel: 8 terminal locations 21047 | -3/Armory | Loaded intel: 2 repair station locations 21048 | -3/Armory | Loaded intel: 2 recycling unit locations 21669 | -3/Armory | Found Prototype Processor 21669 | -3/Armory | Identified Exp. Target Analyzer 21717 | -3/Armory | Found Prototype Device 21717 | -3/Armory | Identified Exp. Shield Generator 22173 | -3/Armory | Found Prototype Launcher 22173 | -3/Armory | Identified Hellfire Missile Launcher 22177 | -3/Armory | Found Prototype Launcher 22177 | -3/Armory | Identified Adv. Micro-nuke Launcher (x2) 22261 | -3/Armory | Discovered new exit (range 9) 22311 | -3/Armory | Entered Lab 22311 | -3/Lab | Discovered new exit (range 9) 22337 | -3/Lab | Remotely autohacked Sealed Barrier 22338 | -3/Lab | Gained access to the hidden lab's interior 22366 | -3/Lab | Found Alien Artifact 22375 | -3/Lab | Found Alien Artifact 22375 | -3/Lab | Identified Integrated Dissipator 22375 | -3/Lab | Installed Integrated Dissipator, increased core heat dissipation (+20) 22420 | -3/Lab | Found Prototype Energy Gun 22420 | -3/Lab | Identified Hyp. EM Gauss Rifle 22426 | -3/Lab | Detected by scanners 22444 | -3/Lab | Confronted by A5 22491 | -3/Lab | System corruption reached 10% 22557 | -3/Lab | Destroyed A5 22599 | -3/Lab | Found Prototype Hackware 22674 | -3/Lab | Entered Research 22674 | -2/Research | Warlord forces began assault on 0b10 22674 | -2/Research | Evolved 2 slots: Power x1, Utility x1 22675 | -2/Research | Identified exit to Testing 22784 | -2/Research | Research machine network offline 23069 | -2/Research | Borebot progress halted 23184 | -2/Research | Borebot progress halted 23377 | -2/Research | Spotted Striker 23803 | -2/Research | Borebot progress halted 23806 | -2/Research | Spotted Striker 23828 | -2/Research | Destroyed Striker 24004 | -2/Research | Spotted Tracker 24007 | -2/Research | Spotted Tracker 24023 | -2/Research | Destroyed Tracker 24036 | -2/Research | Spotted Combat Programmer 24048 | -2/Research | Destroyed Combat Programmer 24059 | -2/Research | Spotted Combat Programmer 24064 | -2/Research | Destroyed Combat Programmer 24078 | -2/Research | Met up with Warlord 24080 | -2/Research | Spotted Striker 24081 | -2/Research | Warlord invited to help at Command 24102 | -2/Research | Found Prototype Processor 24102 | -2/Research | Identified Exp. Targeting Computer 24137 | -2/Research | Spotted Striker 24138 | -2/Research | Spotted Executioner 24144 | -2/Research | Destroyed Executioner 24145 | -2/Research | Destroyed Striker 24195 | -2/Research | Spotted Striker 24206 | -2/Research | Destroyed Striker 24246 | -2/Research | Found Prototype Processor 24246 | -2/Research | Identified Exp. Core Analyzer 24284 | -2/Research | Spotted Striker 24340 | -2/Research | Spotted Executioner 24353 | -2/Research | Spotted Executioner 24358 | -2/Research | Spotted Executioner 24369 | -2/Research | Destroyed Executioner 24371 | -2/Research | Destroyed Executioner 24403 | -2/Research | Destroyed 8 combat bots 24410 | -2/Research | Destroyed Executioner 24417 | -2/Research | Found Prototype Device 24417 | -2/Research | Identified Adv. Kinecellerator 24696 | -2/Research | Build established: Scavenger-Construct 24961 | -2/Research | Found Prototype Device 24961 | -2/Research | Identified Thermal Barrier 25194 | -2/Research | Spotted Tracker 25224 | -2/Research | Found Adv. Kinecellerator 25225 | -2/Research | Found Exp. Core Analyzer 25234 | -2/Research | Spotted Striker 25238 | -2/Research | Spotted Combat Programmer 25250 | -2/Research | Spotted Striker 25253 | -2/Research | Spotted Executioner 25255 | -2/Research | Spotted Executioner 25258 | -2/Research | Destroyed Combat Programmer 25280 | -2/Research | Destroyed Executioner 25374 | -2/Research | Spotted Executioner 25382 | -2/Research | Spotted Striker 25383 | -2/Research | Spotted Striker 25432 | -2/Research | Destroyed Executioner 25593 | -2/Research | Spotted Executioner 25658 | -2/Research | Destroyed Executioner 25715 | -2/Research | Spotted Tracker 25716 | -2/Research | Spotted Tracker 25717 | -2/Research | Spotted Tracker 25730 | -2/Research | Spotted Striker 25745 | -2/Research | Spotted Combat Programmer 25745 | -2/Research | Destroyed Tracker 25759 | -2/Research | System corruption reached 10% 25759 | -2/Research | Spotted Combat Programmer 25760 | -2/Research | Spotted Combat Programmer 25770 | -2/Research | Destroyed Combat Programmer 25779 | -2/Research | Destroyed Combat Programmer 25784 | -2/Research | Destroyed Combat Programmer 25785 | -2/Research | Destroyed Tracker 25830 | -2/Research | Spotted Executioner 25839 | -2/Research | Destroyed Executioner 25843 | -2/Research | Spotted Executioner 25845 | -2/Research | Spotted Striker 26068 | -2/Research | Spotted Executioner 26109 | -2/Research | Spotted Executioner 26134 | -2/Research | Spotted Striker 26136 | -2/Research | Spotted Striker 26144 | -2/Research | Destroyed Striker 26167 | -2/Research | Spotted Striker 26239 | -2/Research | Spotted Striker 26272 | -2/Research | Destroyed Executioner 26281 | -2/Research | Spotted Striker 26282 | -2/Research | Spotted Striker 26345 | -2/Research | Spotted Executioner 26363 | -2/Research | Destroyed Executioner 26469 | -2/Research | Spotted Striker 26532 | -2/Research | Discovered exit to Testing (range 17) 26587 | -2/Research | Discovered new exit (range 13) 26635 | -2/Research | Spotted Tracker 26636 | -2/Research | Spotted Tracker 26636 | -2/Research | Spotted Tracker 26640 | -2/Research | Spotted A7-TIG(L) 26641 | -2/Research | Spotted Executioner 26642 | -2/Research | Spotted Combat Programmer 26642 | -2/Research | Entered Access 26642 | -1/Access | Evolved 2 slots: Utility x2 26642 | -1/Access | Identified Deep Network Scanner 26643 | -1/Access | Identified exit to Command 26944 | -1/Access | Incoming investigation squad redirected 26988 | -1/Access | Intercept squad dispatched 26997 | -1/Access | Spotted Tracker 26998 | -1/Access | Spotted Tracker 27007 | -1/Access | Destroyed Tracker 27065 | -1/Access | Spotted Combat Programmer 27071 | -1/Access | Spotted Combat Programmer 27081 | -1/Access | Destroyed Combat Programmer 27091 | -1/Access | Destroyed Combat Programmer 27460 | -1/Access | Intercept squad dispatched 27466 | -1/Access | Spotted Tracker 27467 | -1/Access | Spotted Tracker 27476 | -1/Access | Destroyed Tracker 27479 | -1/Access | Spotted Combat Programmer 27504 | -1/Access | System corruption reached 10% 27506 | -1/Access | Destroyed Combat Programmer 27513 | -1/Access | Spotted Combat Programmer 27520 | -1/Access | Lost 4 parts (3u1w) 27546 | -1/Access | Destroyed Combat Programmer 27549 | -1/Access | Destroyed Tracker 27677 | -1/Access | First assault squad dispatched 27767 | -1/Access | Identified Transdimensional Reconstructor 27767 | -1/Access | Warped through subspace 27909 | -1/Access | Incoming assault squad redirected 27978 | -1/Access | High security lockdown imminent 28054 | -1/Access | Spotted B-99 Colossus 28058 | -1/Access | High security lockdown engaged 28097 | -1/Access | Energy Cycler disabled 28182 | -1/Access | Destroyed 8 combat bots 28199 | -1/Access | Spotted Executioner 28199 | -1/Access | Spotted Striker 28199 | -1/Access | Spotted Executioner 28211 | -1/Access | Destroyed Striker 28225 | -1/Access | Destroyed Executioner 28236 | -1/Access | Destroyed Executioner 28263 | -1/Access | Spotted Investigator 28264 | -1/Access | Scanned by Researcher 28273 | -1/Access | Destroyed 8 combat bots 28280 | -1/Access | Destroyed Investigator 28288 | -1/Access | Crushed by falling debris 28304 | -1/Access | System corruption reached 30% 28324 | -1/Access | Lost 16 parts (3p1n8u4w) 28343 | -1/Access | Destroyed 12 combat bots 28368 | -1/Access | Released all parts (5) 28375 | -1/Access | Lost 5 parts (3u2w) 28375 | -1/Access | Core integrity fell below 50% 28393 | -1/Access | Spotted Investigator 28394 | -1/Access | Found Prototype Hackware 28394 | -1/Access | Identified Exp. Hacking Suite 28415 | -1/Access | Core integrity fell below 20% 28417 | -1/Access | Spotted Striker 28417 | -1/Access | Spotted Striker 28423 | -1/Access | Destroyed by G-73 Enforcer with Phase Gun Last Messages --------------- 28411_ Held in stasis. 28411_ G-73 Enforcer stasis bubble strength at 39. 28411_ Exp. Hacking Suite destroyed. 28412_ G-73 Enforcer stasis bubble strength at 16. 28413_ G-73 Enforcer stasis bubble bursts. 28413_ Structural Scanner severed. 28414_ Held in stasis. 28414_ Penetrated by Slug. 28417_ C-30 ARC bursts open, deploying its payload. 28417_ Striker unfolds itself. 28417_ P-80 Master unfolds itself. 28417_ E-15 Imp unfolds itself. 28417_ Held in stasis. 28417_ Penetrated by Slug. 28417_ Slug penetrates Wall. 28417_ Knocked back. 28418_ E-15 Imp destroyed. 28420_ Held in stasis. 28420_ Investigator is analyzing... 28421_ Knocked back. Map ----- +----------------------------------------------------+ | ?????????????????????????????????????????????????? | | ?????????????????????????????????????????????????? | | ?????????????????????????????????????????????????? | | ?????????????????????????????????????????????????? | | ?????????????????????????????????????????????????? | | ?????????????????????????????????????????????????? | | ?????????????????????????????????????????????????? | | ?????????????????????????????????????????????????? | | ?????????????????????????????????????????????????? | | ?????????????????????????????????????????????????? | | ##???????????????????????????????????????????????? | | ##??????? ???????????????????????????????????????? | | ?? ##?? ???????????????????????????????????????? | | ??? #### ?????????????????????? # ??????????????? | | ?? #### ????????????????????? # ??????????????? | | ?" #### ???????????????????? # ??????????????? | | G #### ???????????????????? # ??????????????? | | "" #### ##?################ # ??????????????? | | " ??## ################### # ??????????????? | | ???## ##### k + ??????????????? | | ???## # ??????????????? | | ????## c % ????????????????? | | ????## l Y h " ???????????????????? | | ?????## b g gg##?????????????????????? | | #### g K=% ##?????????????????????? | | +######## i h hp!l@##?????????????????????? | | YY Y h"" !K ##?????????????????????? | | ############## %"""" % ##?????????????????????? | | ##### # """" ##?????????????????????? | | ##?????????? # """" ##?????????????????????? | | ##??????????"# """" ##?????????????????????? | | ##??????????"# """" ##?????????????????????? | | ##??????????"#g "" ##?????????????????????? | | ##### ?????? + "" ##?????????????????????? | | ##### ?????? # ##?????????????????????? | | + ?????? # * ##?????????????????????? | | # ?????? + ##?????????????????????? | | #+##????###+###########?????????????????????? | | ##???? #####?????????????????????? | | ###### ##????????????????????????????????????????? | | ### ##????????????????????????????????????????? | | #?? ##????????????????????????????????????????? | | #?????????????????????????????????????????????? | | #?????????????????????????????????????????????? | | #?????????????????????????????????????????????? | | ? #?????????????????????????????????????????????? | | ???#?????????????????????????????????????????????? | | ?????????????????????????????????????????????????? | | ?????????????????????????????????????????????????? | | ?????????????????????????????????????????????????? | +----------------------------------------------------+ Best States ------------- Heat Dissipation 100 Energy Generation 97 Energy Capacity 1643 Matter Stores 300 Matter Capacity 300 Sight Range 23 Terrain Scan Density 10 Jamming Range 14 Armor Coverage 1200 Resistance: KI 25 Resistance: TH 15 Resistance: EM 20 Point Defense Rating 80 Weapon Cycling 20 Evasion (%) 61 Targeting Accuracy 12 Target Analysis 10 Core Analysis 8 Armor Integrity Analysis 50 Recoil Reduction 6 Matter Filtering 50 Kinecelleration 50 Offensive Hacking 25 Defensive Hacking 14 Item Schematics ----------------- Hrd. Medium Armor Plating | -6/Factory | Scanalyzed Combat Drone Bay | -6/Data Miner | Free Lgt. Regenerative Plating | -6/Data Miner | Free Exp. Cesium-ion Thruster | -6/Data Miner | Free Imp. Matter Compressor | -6/Data Miner | Free Tri-rail Accelerator | -6/Data Miner | Free Imp. Linear Gravjet | -6/Data Miner | Free Quantum Capacitor | -6/Data Miner | Free Imp. Component Analysis Suite | -6/Data Miner | Free Dispersion Rifle | -6/Data Miner | Free Adv. Thermal Shield | -6/Data Miner | Free Robot Schematics ------------------ B-48 Gladiator | -6/Data Miner | Free P-70 Sage | -6/Data Miner | Free D-63 Destroyer | -6/Data Miner | Free G-50 Soldier | -6/Data Miner | Free E-15 Imp | -6/Data Miner | Free M-22 Extractor | -6/Data Miner | Free Fabricated ------------ Nothing Alien Tech Used ----------------- Core Expander Integrated Dissipator Transdimensional Reconstructor Achievements -------------- None Challenges ------------ None Game ------ Seed TrackerBlastBox Manual? 0 Play Time 04:08:25 Cumulative 1252.2 hours Start 2023.11.26 @ 22:22:04 End 2023.11.27 @ 22:28:56 Sessions 3 Manual Loads 0 Difficulty Rogue Special Mode None Game No. 908 Rogue 868 Adventurer 40 Explorer 0 Win Type - Total 145 Types 71/7/42/2/1/4/15/2/1 Lore% 92 Gallery% 95 Achievement% 82 Wizard Run 0 Options --------- ASCII 0 Keyboard 0 Movement Numpad Keybinds 0 Fullscreen 0 Font 20/Terminus Map View 76x50 Tactical HUD 1 Map Filters NONE Filters NONE Steam 1 RUN: 5feff787-f600-410b-bf47-0c12a1888beb